Cogmind - Beta 16 @@@ ROGUE MODE // 2025.12.15 @ 03:53:56 Player: lvl5hm Result: Destroyed by P-80 Master with Gamma Rifle Performance ------------- Evolutions (7) 3500 Regions Visited (28) 5600 Robots Destroyed (403) 2015 Value Destroyed (20119) 20119 Prototype IDs (78) 1560 Alien Tech Used (2) 400 Bonus (11066) 11066 TOTAL SCORE: 44260 Bonus ------- High Alert Combat Kills 2419 Follower Combat Kills 151 Met Data Miner 300 Met Imprinter 300 Destroyed Z-Imprinter 1000 Triggered Deep Caves Wall 500 Exposed GOLEM Chamber 500 Met Zhirov 300 Met Warlord at Base 500 MAIN.C Attacked Warlord 500 Warlord Defense Kills 4474 Scanned by Researcher 500 Friendly Fire -378 Cogmind --------- Core Integrity 0/1300 Matter 298/300 Energy 700/700 System Corruption 42% Temperature Cool (0) Movement Core (50) Location -3/Testing Parts ------- > --- POWER (3) -------- (None) > --- PROPULSION (4) --- Assembled Alloy Leg > --- UTILITY (12) ----- Experimental Energy Well Spectral Analyzer Graphene Brace > --- WEAPON (3) ------- (None) > --- INVENTORY (5) ---- Flexi-carbon Leg Precision Matter Filter Advanced Point Defense System GOLEM Unit Peak State ------------ > --- POWER ------------ Reinforced Antimatter Reactor Vortex Chain Reactor > --- PROPULSION ------- Experimental Myomer Leg Experimental Myomer Leg Assembled Alloy Leg Assembled Alloy Leg > --- UTILITY ---------- Assembled Nanovents Assembled Nanovents Assembled Nanovents Assembled Biocell Array Assembled Suspension Frame Enhanced Optical Array Assembled Combat Suite Assembled Alloy Armor Assembled Alloy Armor Advanced Hacking Suite GOLEM Unit > --- WEAPON ----------- Assembled Focal Cannon Assembled Focal Cannon Assembled Focal Cannon > --- INVENTORY -------- Improved Transmission Jammer Improved Force Field GOLEM Unit Improved Remote Datajack [Rating: 191] Favorites ----------- Power Assembled Flux Generator Engine Improved Deuterium Engine Power Core Nuclear Core Reactor Assembled Flux Generator Propulsion Assembled Alloy Leg Treads Light Treads Leg Assembled Alloy Leg Wheel Armored Huge Wheel Utility Assembled Nanovents Device Assembled Nanovents Storage Large Storage Unit Processor Enhanced Optical Array Hackware Advanced Hacking Suite Protection Assembled Alloy Armor Weapon Assembled Focal Cannon Energy Gun Small Laser Energy Cannon Assembled Focal Cannon Ballistic Gun Enhanced Autogun Launcher Rocket Array Special Weapon Plasma Cutter Impact Weapon Impact Mace Slashing Weapon Makeshift Sword Build | -11 -10 -10 -8 -8 -7 -7 -7 -7 -7 -6 -6 -6 -6 -6 -5 -5 -5 -5 -5 -5 -5 -4 -4 -4 -4 -3 -3 -3 ------- Run | Yrd Mat Sub Mat Sto Fac Low Low Zio Dee Pro Fac Low Low Dat Pro Fac Was Fac Upp Upp Zhi Pro Fac Upp War Pro Res Tes Slots Evolved 14 | . . . 4 . 2 . . . . . 2 . . . . 2 . . . . . . 2 . . . 2 . Power 1 | . . . . . . . . . . . 1 . . . . . . . . . . . . . . . . . Propulsion 2 | . . . . . 1 . . . . . . . . . . . . . . . . . . . . . 1 . Utility 10 | . . . 4 . 1 . . . . . 1 . . . . 2 . . . . . . 1 . . . 1 . Weapon 1 | . . . . . . . . . . . . . . . . . . . . . . . 1 . . . . . Parts Attached 212 | 8 10 15 29 22 25 2 3 . 23 2 8 2 1 . 2 1 1 7 3 1 2 . 10 1 10 . 8 16 Power 30 | 1 . 2 3 4 2 . . . 4 . . . . . 1 . . 1 1 1 1 . 4 . 1 . 3 1 Engine 14 | 1 . 2 2 3 2 . . . 2 . . . . . . . . 1 1 . . . . . . . . . Core 6 | . . . 1 1 . . . . . . . . . . 1 . . . . 1 . . 2 . . . . . Reactor 10 | . . . . . . . . . 2 . . . . . . . . . . . 1 . 2 . 1 . 3 1 Propulsion 35 | 2 1 2 6 8 2 . . . 2 . . . . . . . . . 1 . . . 2 1 1 . 1 6 Treads 19 | 2 1 1 6 8 1 . . . . . . . . . . . . . . . . . . . . . . . Leg 14 | . . . . . . . . . 2 . . . . . . . . . 1 . . . 2 1 1 . 1 6 Wheel 2 | . . 1 . . 1 . . . . . . . . . . . . . . . . . . . . . . . Hover . | . . . . . . . . . . . . . . . . . . . . . . . . . . . . . Flight . | . . . . . . . . . . . . . . . . . . . . . . . . . . . . . Utility 101 | 2 5 1 11 5 12 2 2 . 15 2 7 2 1 . 1 1 1 6 1 . 1 . 4 . 7 . 4 8 Device 50 | 1 2 . 5 2 3 1 1 . 3 2 4 1 1 . 1 1 1 6 . . 1 . 3 . 3 . 3 5 Storage 9 | 1 1 . 1 . 1 1 . . 2 . . . . . . . . . 1 . . . . . . . . 1 Processor 10 | . . . . . 1 . . . . . 3 1 . . . . . . . . . . . . 2 . 1 2 Hackware 1 | . . . . . . . . . . . . . . . . . . . . . . . 1 . . . . . Protection 31 | . 2 1 5 3 7 . 1 . 10 . . . . . . . . . . . . . . . 2 . . . Artifact . | . . . . . . . . . . . . . . . . . . . . . . . . . . . . . Weapon 46 | 3 4 10 9 5 9 . 1 . 2 . 1 . . . . . . . . . . . . . 1 . . 1 Energy Gun 8 | 1 1 2 1 1 2 . . . . . . . . . . . . . . . . . . . . . . . Energy Cannon 16 | . 3 7 . 1 3 . 1 . . . . . . . . . . . . . . . . . . . . 1 Ballistic Gun 9 | 2 . . 6 . 1 . . . . . . . . . . . . . . . . . . . . . . . Ballistic Cannon . | . . . . . . . . . . . . . . . . . . . . . . . . . . . . . Launcher 7 | . . 1 . 2 1 . . . 2 . 1 . . . . . . . . . . . . . . . . . Special Weapon 3 | . . . 1 1 . . . . . . . . . . . . . . . . . . . . 1 . . . Impact Weapon 1 | . . . . . 1 . . . . . . . . . . . . . . . . . . . . . . . Slashing Weapon 2 | . . . 1 . 1 . . . . . . . . . . . . . . . . . . . . . . . Piercing Weapon . | . . . . . . . . . . . . . . . . . . . . . . . . . . . . . Special Melee Weapon . | . . . . . . . . . . . . . . . . . . . . . . . . . . . . . Unidentified Prototypes 31 | . . . 2 2 4 . . . 5 . 2 . . . 1 . 1 . . . 2 . . . 5 . . 7 Parts Lost 63 | . . . 1 1 2 . . . 14 1 . . . . . . . 1 2 1 . . 8 . 1 . . 31 Power 9 | . . . . . . . . . 3 . . . . . . . . . 1 . . . 1 . . . . 4 Propulsion 11 | . . . 1 . . . . . 2 . . . . . . . . . 1 . . . . . . . . 7 Utility 38 | . . . . 1 2 . . . 8 1 . . . . . . . 1 . 1 . . 5 . 1 . . 18 Weapon 5 | . . . . . . . . . 1 . . . . . . . . . . . . . 2 . . . . 2 Highest Loss Streak 11 | . . . 1 1 1 . . . 9 1 . . . . . . . 1 2 1 . . 4 . 1 . . 11 To Critical Strikes . | . . . . . . . . . . . . . . . . . . . . . . . . . . . . . Average Backups 11 | 1 10 14 14 14 14 15 18 19 12 10 9 9 9 10 9 9 6 3 3 5 7 8 8 8 8 8 8 7 Power . | . . . . . 1 1 2 2 1 1 1 1 1 1 1 . . . . . . . . 1 . . . . Propulsion . | . 2 2 3 2 . . . . . . . . . . . . . . . . . . . . . 1 . . Utility 5 | . 3 5 3 5 6 6 7 8 6 6 7 7 8 8 8 8 6 3 3 5 6 6 6 5 5 5 6 5 Weapon 3 | . 4 5 6 5 5 5 6 7 4 3 1 1 . 1 . 1 . . . . . . . . . . . . Tool/Special . | . . . . . . . . . . . . . . . . . . . . . . . . . . . . . Unused Backups 37 | . 10 2 5 1 2 . . . 4 . 1 . . . . . 4 . . . 1 1 . 1 . . 1 4 Power 2 | . 1 . . . . . . . . . 1 . . . . . . . . . . . . . . . . . Propulsion 1 | . . . 1 . . . . . . . . . . . . . . . . . . . . . . . . . Utility 18 | . 4 . . . 2 . . . 4 . . . . . . . 4 . . . . 1 . 1 . . . 2 Weapon 15 | . 5 2 4 1 . . . . . . . . . . . . . . . . 1 . . . . . 1 1 Tool/Special 1 | . . . . . . . . . . . . . . . . . . . . . . . . . . . . 1 Average Slot Usage (%) 88 | . 99 100 96 99 92 75 74 75 81 92 85 85 85 86 83 87 85 87 87 88 88 83 88 89 89 89 89 81 Engine 4 | . 14 14 8 8 5 12 12 12 4 . . . . . . . . . 4 1 . . . . . . . . Reactor 4 | . . . . . . . . . 5 7 5 5 6 6 6 9 9 10 5 5 7 6 8 10 9 10 9 8 Treads 7 | . 28 23 17 18 15 6 6 6 1 . . . . . . . . . . . . . . . . . . . Leg 9 | . . . . . . . . . 12 23 20 19 20 20 18 16 16 16 15 16 16 15 15 15 15 15 17 16 Wheel 1 | . . 4 . . 3 6 6 6 1 . . . . . . . . . . . . . . . . . . . Device 19 | . 9 11 16 25 21 18 17 18 15 15 18 12 12 13 12 19 28 35 32 27 27 27 28 24 22 20 22 23 Storage 9 | . 14 14 9 9 6 6 6 6 9 15 13 13 13 13 12 12 8 5 5 11 11 11 10 9 10 9 8 7 Processor 4 | . . . . . 6 6 6 6 3 . 6 12 13 13 12 10 5 5 5 5 5 5 5 5 6 7 4 4 Protection 8 | . 3 2 24 19 13 6 6 6 13 15 6 6 6 6 6 5 5 2 5 5 4 5 5 5 5 7 8 5 Energy Cannon 11 | . 11 26 3 . 6 10 11 7 11 15 12 13 12 13 12 11 11 11 11 11 11 10 14 15 13 14 12 10 Ballistic Gun 1 | . 5 . 11 13 4 . . . . . . . . . . . . . . . . . . . . . . . Peak Build Rating 191 | 7 12 15 30 32 58 59 61 58 112 106 131 128 123 119 126 149 154 154 140 139 146 146 165 170 166 174 191 184 Average Rating 90 | 6 8 13 25 27 43 58 58 57 84 105 124 118 118 119 119 147 149 148 131 136 142 139 157 163 157 161 178 167 On Entrance 102 | . 7 12 13 27 29 58 59 57 55 106 106 119 119 119 119 126 144 154 138 133 139 146 139 164 164 162 161 183 Avg Prop Armor Cover (%) 6 | . . 6 6 . 6 6 5 5 5 . . . . . . . . 5 . . . . 3 . . . . 20 Naked Turns . | . . . . . . . . . . . . . . . . . . . . . . . . . . . . . Heaviest Build 149 | 14 38 46 58 51 74 139 142 135 149 76 107 99 98 98 119 121 110 99 103 103 103 103 132 130 135 139 130 129 Greatest Support 130 | 40 40 40 42 42 60 28 28 28 84 84 84 84 84 84 84 84 104 104 95 95 95 95 105 105 105 105 130 130 Greatest Overweight (x) 34 | . . 2 2 1 2 4 5 4 34 . 1 1 1 1 1 2 2 1 1 1 1 1 1 1 1 2 1 24 Average Overweight (x) 1 | . . 1 1 . 1 3 4 4 1 . . 1 . 1 1 1 . . . 1 1 . . 1 . 1 . . Largest Inventory Capacity 25 | 8 15 15 15 15 15 25 25 25 25 15 15 15 15 15 15 15 15 5 10 10 10 10 10 10 10 10 10 10 Average Capacity 13 | 7 12 15 15 15 15 20 25 25 16 15 15 15 15 15 15 15 10 5 5 10 10 10 10 9 10 9 9 8 Most Carried 25 | 2 15 15 15 15 15 19 22 21 25 15 15 15 15 15 15 15 15 5 7 9 10 10 10 10 10 10 10 10 Average Carried 13 | 1 10 14 14 14 14 17 20 21 14 14 14 14 14 15 14 14 10 5 5 7 9 10 9 9 9 9 9 8 Final Capacity 25 | 8 15 15 15 15 15 25 25 25 15 15 15 15 15 15 15 15 5 5 10 10 10 10 10 10 10 10 10 5 Final Carried 21 | 2 14 14 15 15 15 19 21 21 15 15 15 15 15 15 15 15 5 5 7 8 10 10 10 10 10 10 10 5 Class Distribution -------------------- 52% | Golem 36% | Mutant 10% | Scavenger-Mutant Dominant Class ---------------- Mutant | -10/Materials Mutant | -10/Subcaves Scavenger-Mutant | -8/Materials Mutant | -8/Storage Mutant | -7/Factory Mutant | -7/Lower Caves Mutant | -7/Lower Caves Mutant | -7/Zion Mutant | -7/Deep Caves Golem | -6/Proximity Caves Golem | -6/Factory Golem | -6/Lower Caves Golem | -6/Lower Caves Golem | -6/Data Miner Golem | -5/Proximity Caves Golem | -5/Factory Golem | -5/Waste Golem | -5/Factory Golem | -5/Upper Caves Golem | -5/Upper Caves Golem | -5/Zhirov Golem | -4/Proximity Caves Golem | -4/Factory Golem | -4/Upper Caves Golem | -4/Warlord Golem | -3/Proximity Caves Golem | -3/Research Golem | -3/Testing Resources | -11 -10 -10 -8 -8 -7 -7 -7 -7 -7 -6 -6 -6 -6 -6 -5 -5 -5 -5 -5 -5 -5 -4 -4 -4 -4 -3 -3 -3 ----------- Run | Yrd Mat Sub Mat Sto Fac Low Low Zio Dee Pro Fac Low Low Dat Pro Fac Was Fac Upp Upp Zhi Pro Fac Upp War Pro Res Tes Matter Collected 6666 | 277 223 376 1120 1044 1011 70 203 10 661 92 141 89 27 . 100 . . 156 76 15 . 61 157 30 142 56 267 262 Remotely 10 | . . . . . . . . . . 10 . . . . . . . . . . . . . . . . . . Salvage Created 21781 | 103 500 742 1282 1389 821 189 94 . 873 223 1362 243 87 . 327 . 223 1619 732 197 . 247 2253 207 2311 566 2320 2871 Parts 935 | 13 30 42 84 71 29 4 3 . 14 9 67 9 5 . 9 . 5 65 22 9 . 12 97 13 66 22 121 114 Haulers Intercepted 13 | . 2 . 3 4 . . . . . . 1 . . . . . . 2 . . . . 1 . . . . . Recyclers Shooed 9 | 1 2 . . 2 2 . . . . . 1 . . . . . . . . . . . 1 . . . . . Parts Field Recycled . | . . . . . . . . . . . . . . . . . . . . . . . . . . . . . Retrieved Matter . | . . . . . . . . . . . . . . . . . . . . . . . . . . . . . Parts Self-Destructed 127 | . . 12 . . . 6 2 . . 9 . 9 5 . 8 . . . 20 10 . 12 . 12 . 22 . . Prevented 9 | . . . . . . . 3 . . . . . . . . . . . . . . . . 4 . 2 . . Parts Restored . | . . . . . . . . . . . . . . . . . . . . . . . . . . . . . Kills | -11 -10 -10 -8 -8 -7 -7 -7 -7 -7 -6 -6 -6 -6 -6 -5 -5 -5 -5 -5 -5 -5 -4 -4 -4 -4 -3 -3 -3 ------- Run | Yrd Mat Sub Mat Sto Fac Low Low Zio Dee Pro Fac Low Low Dat Pro Fac Was Fac Upp Upp Zhi Pro Fac Upp War Pro Res Tes Combat Hostiles Destroyed 377 | . 13 18 23 19 11 3 4 . 46 7 23 6 5 . 5 . 1 23 8 4 . 5 29 6 33 8 32 45 Guns 44 | . 9 1 13 16 5 . . . . . . . . . . . . . . . . . . . . . . . Cannons 257 | . 4 16 6 2 6 3 . . 3 3 20 6 1 . 5 . 1 22 8 4 . 5 29 6 31 8 32 36 AOE 62 | . . . 4 . . . 3 . 37 4 3 . 4 . . . . 1 . . . . . . . . . 6 Classes Destroyed 26 | 2 4 2 4 1 1 1 . . 4 . 1 1 . . . . 1 . . . . 1 . . 3 . . . Worker 6 | . . . 1 1 . . . . . . 1 . . . . . . . . . . . 1 . . . . 2 Builder 10 | . . . 3 . . . . . . . . . . . . . . 1 . . . . 3 . . . . 3 Tunneler 4 | 3 . . . . . . . . . . . . . . . . . . . . . . 1 . . . . . Hauler 13 | . 2 . 3 4 . . . . . . 1 . . . . . . 2 . . . . 1 . . . . . Recycler 9 | 1 . . 2 1 3 . . . . . 1 . . . . . . 1 . . . . . . . . . . Operator 8 | . . . 3 1 . . . . . . . . . . . . . . . . . . 2 . . . 1 1 Drone 2 | . . . . . . . . . . . . . . . . . . . . . . 2 . . . . . . Watcher 11 | . 2 . 1 1 . . . . . . . . . . . . . 1 . . . . 2 . . . 2 2 Swarmer 62 | . 8 2 7 . . . 3 . . 4 3 3 4 . . . . 5 1 4 . . 4 4 5 . 3 2 Grunt 139 | . 5 3 8 8 3 2 . . . 3 9 2 . . 2 . . 5 4 . . . 14 1 20 8 15 27 Brawler 7 | . . . . 1 . . . . . . 1 . . . 1 . . . 1 . . . 1 . . . . 2 Duelist 6 | . . . . . . . . . . . . 1 . . 1 . . 1 . . . . 1 . . . . 2 Sentry 34 | . . 1 5 9 4 1 . . . . 3 . . . 1 . . 4 2 . . 1 1 . . . 2 . Demolisher 1 | . . . . . . . . . . . . . . . . . . . . . . . . . 1 . . . Specialist 1 | . . . . . . . . . . . . . . . . . . . . . . . . . 1 . . . Hunter 27 | . . . 3 1 1 . 1 . . . 2 . . . . . . 2 . . . 2 2 1 2 . 5 5 Programmer 34 | . . . . . 3 . . . . . 4 . 1 . . . . 6 . . . . 5 . 1 . 7 7 Behemoth 2 | . . . . . . . . . . . 1 . . . . . . . . . . . 1 . . . . . Compactor 1 | . . . . . . . . . . . . . . . . . 1 . . . . . . . . . . . Striker 3 | . . . . . . . . . . . . . . . . . . . . . . . . . 3 . . . Subdweller 12 | . . 12 . . . . . . . . . . . . . . . . . . . . . . . . . . Z-Light 5 | . . . . . . . . . 5 . . . . . . . . . . . . . . . . . . . Packrat 4 | . . . . . . . . . . . . . . . . . . . 3 1 . . . . . . . . Samaritan 1 | . . . . . . 1 . . . . . . . . . . . . . . . . . . . . . . Assembler 2 | . . . . . . . . . 2 . . . . . . . . . . . . . . . . . . . Assembled 37 | . . . . . . . . . 37 . . . . . . . . . . . . . . . . . . . Golem 3 | . . . . . . . . . 3 . . . . . . . . . . . . . . . . . . . Thug 1 | . . . . . . . . . . . . . . . . . . . . . . . . . 1 . . . Best Kill Streak 39 | 3 3 2 6 4 3 3 3 . 39 4 5 3 4 . 5 . 1 7 3 4 . 2 7 4 8 4 7 10 Combat Bots Only 37 | . 3 2 4 4 3 3 3 . 37 4 5 3 4 . 5 . 1 6 3 4 . 2 6 4 8 4 7 9 Max Kills in Single Turn 31 | 1 1 1 3 2 1 1 2 . 31 4 4 1 3 . 1 . 1 2 1 2 . 1 5 2 2 1 1 4 Gunslinging . | . . . . . . . . . . . . . . . . . . . . . . . . . . . . . Exploded 31 | . . . 3 . . . 2 . 31 4 3 . 3 . . . . 1 . . . . . . . . . 3 Melee . | . . . . . . . . . . . . . . . . . . . . . . . . . . . . . Uniques/NPCs Destroyed 1 | . . . . . . . . . 1 . . . . . . . . . . . . . . . . . . . Z-Imprinter (-7/Deep Caves) Combat | -11 -10 -10 -8 -8 -7 -7 -7 -7 -7 -6 -6 -6 -6 -6 -5 -5 -5 -5 -5 -5 -5 -4 -4 -4 -4 -3 -3 -3 -------- Run | Yrd Mat Sub Mat Sto Fac Low Low Zio Dee Pro Fac Low Low Dat Pro Fac Was Fac Upp Upp Zhi Pro Fac Upp War Pro Res Tes Hostile Shots Fired 2185 | . 69 51 117 88 164 14 9 . 119 18 107 30 7 . 13 . 3 192 47 14 . 20 206 13 169 37 99 579 Missed 776 | . 16 16 29 25 58 3 2 . 28 7 39 3 3 . . . 1 82 23 3 . 12 88 3 82 11 47 195 Hits 1409 | . 53 35 88 63 106 11 7 . 91 11 68 27 4 . 13 . 2 110 24 11 . 8 118 10 87 26 52 384 Melee 41 | . . . . . . . . . 4 . . 4 . . . . 2 2 . . . . 1 . . . . 28 Projectile 1368 | . 53 35 88 63 106 11 7 . 87 11 68 23 4 . 13 . . 108 24 11 . 8 117 10 87 26 52 356 Critical Strikes 76 | . . . 3 3 2 . . . . . 3 4 . . . . 2 3 1 . . . 9 . 7 . 7 32 Actively Blocked 13 | . . . . . . . . . . . . . . . . . . . . . . . . . . . . 13 Part Disruptions 3 | . . . . . . . . . . . . . . . . . . 1 . . . . 1 . . . . 1 Damage Taken 22018 | . 544 602 1064 840 835 98 79 . 3037 174 791 457 54 . 204 . 80 1604 268 108 . 69 2144 128 1259 293 575 6711 Core 2803 | . 124 101 95 64 60 5 11 . 338 15 30 81 . . 34 . . 248 42 . . . 92 13 128 13 63 1246 Absorbed by Shields 3075 | . . . . 149 320 14 30 . 317 . . . . . 15 . . 347 100 36 . . . . 361 135 371 880 Redirected to Shielding 614 | . . . . . . . . . 614 . . . . . . . . . . . . . . . . . . . Ignored by Resistances 2596 | . . . . . . . . . . 35 169 89 12 . 42 . 16 258 73 30 . 14 344 28 351 91 195 849 Regen/Repaired (Parts) 279 | . 66 . 166 . . . . . . . . . . . . . . . . . . . . . 47 . . . Core Remaining (%) 64 | 100 . 10 . 71 . . . . . 38 . . . . 82 . . . . . . 71 . . . 78 . . Volleys Fired 1002 | 6 50 49 63 95 55 5 5 . 46 14 85 23 3 . 18 . 28 71 32 8 . 27 72 6 59 17 78 87 Largest 3 | 2 2 2 2 2 2 2 2 . 2 2 2 2 2 . 2 . 2 2 2 2 . 2 3 3 3 3 3 3 Hottest 200 | 60 136 160 160 106 130 95 125 . 134 50 50 50 68 . 50 . 50 50 50 50 . 50 75 75 75 75 75 200 Shots Fired 2032 | 12 99 79 124 189 108 10 8 . 70 24 143 34 6 . 36 . 50 110 64 17 . 54 168 18 165 52 198 194 Gun 424 | 12 64 5 92 180 71 . . . . . . . . . . . . . . . . . . . . . . . Cannon 1574 | . 35 70 30 8 37 10 5 . 50 23 143 34 4 . 36 . 50 110 64 17 . 54 168 18 165 52 197 194 Launcher 33 | . . 4 2 1 . . 3 . 20 1 . . 2 . . . . . . . . . . . . . . . Special 1 | . . . . . . . . . . . . . . . . . . . . . . . . . . . 1 . Kinetic 368 | 6 24 4 94 172 68 . . . . . . . . . . . . . . . . . . . . . . . Thermal 1573 | 6 75 75 30 . 33 10 . . 15 23 143 34 4 . 36 . 50 110 64 17 . 54 168 18 165 52 197 194 Explosive 17 | . . . . 1 . . 3 . 10 1 . . 2 . . . . . . . . . . . . . . . Electromagnetic 73 | . . . . 16 7 . 5 . 45 . . . . . . . . . . . . . . . . . . . Robot Hit Streak 37 | 5 9 15 16 17 20 6 8 . 18 7 20 18 3 . 9 . 23 18 16 5 . 14 26 19 30 14 24 37 Robot Miss Streak 7 | 2 3 1 7 6 3 2 . . 4 1 2 2 1 . 1 . 1 2 1 2 . 7 3 . 1 2 4 2 Penetration Max . | . . . . . . . . . . . . . . . . . . . . . . . . . . . . . Secondary Targets 4 | . . . . 3 1 . . . . . . . . . . . . . . . . . . . . . . . Max Gunslinging Chain 1 | . . . . 1 1 . . . . . . . . . . . . . . . . . . . . . . . Shots Hit Robots 1293 | 7 58 51 96 130 88 7 6 . 33 8 73 22 4 . 18 . 39 68 35 9 . 14 115 9 121 34 107 141 Core Hits 702 | 5 24 18 47 46 26 4 6 . 113 12 33 8 3 . 7 . 5 37 15 5 . 7 62 7 56 15 61 80 Critical Kills 4 | . . 1 1 1 1 . . . . . . . . . . . . . . . . . . . . . . . Critical Parts Destroyed 2 | . . . . 2 . . . . . . . . . . . . . . . . . . . . . . . . Critical Strikes 9 | . . 1 2 3 2 . . . 1 . . . . . . . . . . . . . . . . . . . Meltdown 1 | . . 1 . . . . . . . . . . . . . . . . . . . . . . . . . . Destroy 4 | . . . 1 3 . . . . . . . . . . . . . . . . . . . . . . . . Corrupt 1 | . . . . . . . . . 1 . . . . . . . . . . . . . . . . . . . Smash 1 | . . . . . 1 . . . . . . . . . . . . . . . . . . . . . . . Sever 2 | . . . 1 . 1 . . . . . . . . . . . . . . . . . . . . . . . Melee Attacks 47 | . . . 20 3 16 1 . 1 6 . . . . . . . . . . . . . . . . . . . Impact 17 | . . . . . 9 1 . 1 6 . . . . . . . . . . . . . . . . . . . Slashing 30 | . . . 20 3 7 . . . . . . . . . . . . . . . . . . . . . . . Piercing . | . . . . . . . . . . . . . . . . . . . . . . . . . . . . . Sneak Attacks 16 | . . . 11 . 4 1 . . . . . . . . . . . . . . . . . . . . . . Combat Hostiles . | . . . . . . . . . . . . . . . . . . . . . . . . . . . . . Follow-up Attacks . | . . . . . . . . . . . . . . . . . . . . . . . . . . . . . Damage Inflicted 59777 | 80 860 1549 2781 2452 2169 251 360 . 4339 680 4187 986 512 . 851 . 1818 3368 1513 383 . 607 6058 450 6321 1621 5137 10444 Guns 4970 | 80 509 56 1084 2186 1055 . . . . . . . . . . . . . . . . . . . . . . . Cannons 44397 | . 351 1186 526 184 789 162 110 . 720 336 3449 986 93 . 851 . 1818 3283 1513 383 . 607 5412 450 6321 1621 5137 8109 Explosions 9112 | . . 307 241 76 57 . 250 . 3619 344 733 . 419 . . . . 85 . . . . 646 . . . . 2335 Melee 1287 | . . . 930 . 268 89 . . . . . . . . . . . . . . . . . . . . . . Ramming 11 | . . . . 6 . . . . . . 5 . . . . . . . . . . . . . . . . . Kinetic 4838 | 24 181 307 1325 2013 988 . . . . . . . . . . . . . . . . . . . . . . . Thermal 47327 | 56 679 1242 526 76 780 162 . . 286 336 4182 986 93 . 851 . 1818 3283 1513 383 . 607 5602 450 6321 1621 5137 10337 Explosive 4494 | . . . . . . . 250 . 3048 344 . . 419 . . . . . . . . . 433 . . . . . Electromagnetic 1820 | . . . . 357 133 . 110 . 1005 . . . . . . . . 85 . . . . 23 . . . . 107 Impact 236 | . . . . . 147 89 . . . . . . . . . . . . . . . . . . . . . . Slashing 1051 | . . . 930 . 121 . . . . . . . . . . . . . . . . . . . . . . . Piercing . | . . . . . . . . . . . . . . . . . . . . . . . . . . . . . Highest Corruption 41 | . . . . 2 7 7 7 3 . . 3 3 3 . . . . 3 3 3 3 3 . . 2 2 2 41 Average Corruption 3 | . . . . 2 1 7 5 3 . . 2 3 2 . . . . 1 3 3 3 3 . . 1 2 1 7 Corruption Purged 12 | . . . . . . . 4 . . . . . 3 . . . . 5 . . . . . . . . . . Corruption Blocked . | . . . . . . . . . . . . . . . . . . . . . . . . . . . . . Effects 213 | . . . . 5 15 21 24 2 . . 18 26 1 . . . . 7 16 4 3 18 . . 8 10 4 31 Message Errors 47 | . . . . 1 5 5 4 2 . . 7 3 . . . . . . 2 . 1 5 . . . 4 . 8 Matter Fused 49 | . . . . 1 2 3 7 . . . 4 6 . . . . . 1 7 2 . 4 . . 5 1 . 6 Heat Flow Errors 27 | . . . . . 2 4 3 . . . 2 8 . . . . . 1 1 . . 2 . . . . . 4 Energy Discharges 23 | . . . . 2 2 3 1 . . . 1 3 . . . . . 2 1 . . 1 . . 1 1 1 4 Parts Rejected 5 | . . . . . . . . . . . . 1 . . . . . 1 . . . 2 . . 1 . . . Parts Fused 3 | . . . . . 1 . 1 . . . . . . . . . . . . . . . . . . . . 1 Data Loss (minor) 22 | . . . . . 1 3 2 . . . 2 3 1 . . . . . 2 1 . . . . . 2 1 4 Data Loss (major) 13 | . . . . . . 2 3 . . . 1 1 . . . . . . 2 . 1 2 . . . 1 . . Misfires 7 | . . . . . 1 . 1 . . . . . . . . . . . . 1 . 1 . . 1 1 1 . Alerts 10 | . . . . 1 1 1 2 . . . 1 1 . . . . . 1 1 . 1 . . . . . . . Weapon Failures 7 | . . . . . . . . . . . . . . . . . . 1 . . . 1 . . . . 1 4 Overload Shots 1 | . . . . . 1 . . . . . . . . . . . . . . . . . . . . . . . Overflow Damage 2666 | . . 20 309 4 107 71 . . 134 14 211 41 71 . 38 . 4 275 88 38 . 19 246 . 126 9 54 787 Projectiles 1540 | . . 20 . 4 60 13 . . 14 4 107 41 . . 38 . 4 269 88 38 . 19 193 . 126 9 54 439 Explosions 712 | . . . . . . . . . 120 10 104 . 71 . . . . 6 . . . . 53 . . . . 348 Melee 414 | . . . 309 . 47 58 . . . . . . . . . . . . . . . . . . . . . . Knockbacks 1 | . . . . . 1 . . . . . . . . . . . . . . . . . . . . . . . Impact 1 | . . . . . 1 . . . . . . . . . . . . . . . . . . . . . . . Kinetic . | . . . . . . . . . . . . . . . . . . . . . . . . . . . . . Secondary . | . . . . . . . . . . . . . . . . . . . . . . . . . . . . . Self-Inflicted Damage 409 | . . . . 18 . . . . 32 15 71 . . . . . . 28 . . . . . . . . . 245 Shots 11 | . . . . 1 . . . . 1 1 2 . . . . . . 1 . . . . . . . . . 5 Rammed . | . . . . . . . . . . . . . . . . . . . . . . . . . . . . . Targets Rammed 1 | . . . . . . . . . . . 1 . . . . . . . . . . . . . . . . . Kicked 1 | . . . . . . . . . . . 1 . . . . . . . . . . . . . . . . . Crushed . | . . . . . . . . . . . . . . . . . . . . . . . . . . . . . Highest Temperature 584 | . 310 265 362 302 211 223 254 . 584 18 228 260 . . . . . 163 128 . . 53 14 . 141 211 34 360 Average Temperature 93 | . 97 69 130 113 39 65 89 . 150 4 96 118 . . . . . 75 36 . . 46 10 . 38 104 9 95 Received Heat Transfer 4384 | . 177 78 369 350 231 36 6 . 432 72 207 171 . . 90 . . 289 99 . . . 586 21 260 100 99 711 Effects 27 | . 2 . 3 1 . . 1 . 17 . . . . . . . . . . . . . . . . . . 3 Energy Bleed 4 | . . . 1 . . . . . 3 . . . . . . . . . . . . . . . . . . . Interference 14 | . 2 . 2 . . . 1 . 6 . . . . . . . . . . . . . . . . . . 3 Short Circuit 1 | . . . . 1 . . . . . . . . . . . . . . . . . . . . . . . . Damage (minor) 2 | . . . . . . . . . 2 . . . . . . . . . . . . . . . . . . . Damage (major) 6 | . . . . . . . . . 6 . . . . . . . . . . . . . . . . . . . Siege Activations . | . . . . . . . . . . . . . . . . . . . . . . . . . . . . . Martial Activations . | . . . . . . . . . . . . . . . . . . . . . . . . . . . . . Shielding Activations . | . . . . . . . . . . . . . . . . . . . . . . . . . . . . . Robots Disrupted . | . . . . . . . . . . . . . . . . . . . . . . . . . . . . . Combat Hostiles . | . . . . . . . . . . . . . . . . . . . . . . . . . . . . . Robots Corrupted 10 | . . . . 1 1 1 1 . 6 . . . . . . . . . . . . . . . . . . . Combat Hostiles 8 | . . . . 1 . . 1 . 6 . . . . . . . . . . . . . . . . . . . Parts Fried 17 | . . . . 1 1 . 1 . 14 . . . . . . . . . . . . . . . . . . . Impact Corruptions 6 | . . . . . 1 5 . . . . . . . . . . . . . . . . . . . . . . Robots Melted 6 | . . 1 . . . . . . . . . . . . . . . . . . . . . . 2 . . 3 Combat Hostiles 6 | . . 1 . . . . . . . . . . . . . . . . . . . . . . 2 . . 3 Parts Melted 44 | . 3 3 3 . 4 . . . . . . . . . . . . 6 . 1 . . 1 . 10 1 6 6 Heat Transferred 29947 | 125 1473 1678 740 100 901 222 . . 359 200 2325 550 50 . 450 . 1000 1725 850 250 . 350 3100 250 3309 875 2750 6315 Parts Sabotaged 1 | . . . . . . . . . . . . . . . . . . . . . . . . . . . . 1 Parts Stolen . | . . . . . . . . . . . . . . . . . . . . . . . . . . . . . Parts Stripped . | . . . . . . . . . . . . . . . . . . . . . . . . . . . . . Power Chain Reactions 5 | . . . . 1 1 . . . 2 . . . . . . . . . . . . . 1 . . . . . Alert | -11 -10 -10 -8 -8 -7 -7 -7 -7 -7 -6 -6 -6 -6 -6 -5 -5 -5 -5 -5 -5 -5 -4 -4 -4 -4 -3 -3 -3 ------- Run | Yrd Mat Sub Mat Sto Fac Low Low Zio Dee Pro Fac Low Low Dat Pro Fac Was Fac Upp Upp Zhi Pro Fac Upp War Pro Res Tes Maximum Alert Level 4 | . . . . 1 . . . . . . 2 . . . . . . 1 . . . . 3 . . . 3 4 Low Security (%) 74 | 100 100 . 100 90 100 . . . . . 90 . . . . 100 100 94 . . . . . . . . 23 . Level 1 7 | . . . . 9 . . . . . . 6 . . . . . . 5 . . . . 19 . . . 42 . Level 2 9 | . . . . . . . . . . . 3 . . . . . . . . . . . 44 . . . 29 37 Level 3 6 | . . . . . . . . . . . . . . . . . . . . . . . 34 . . . 3 44 Level 4 1 | . . . . . . . . . . . . . . . . . . . . . . . . . . . . 18 Level 5 . | . . . . . . . . . . . . . . . . . . . . . . . . . . . . . High Security . | . . . . . . . . . . . . . . . . . . . . . . . . . . . . . Max Security . | . . . . . . . . . . . . . . . . . . . . . . . . . . . . . Peak Influence 1307 | 5 127 . 167 235 115 . . . . . 406 . . . . 50 4 257 . . . . 1013 . . . 756 1307 Initial 450 | . . . . 26 42 . . . . . . . . . . 50 . . . . . . 450 . . . 48 421 Average 185 | 1 37 . 67 68 42 . . . . . 64 . . . . 13 . 67 . . . . 595 . . . 333 798 Influence Increases 10608 | 20 401 160 720 650 427 75 130 . . 160 817 140 120 . 100 . 16 804 170 111 . 95 1639 140 840 180 1147 1546 Destroy 0b10 Robot/C 6360 | . 260 120 460 380 220 60 80 . . 140 460 120 100 . 100 . . 460 160 100 . 60 580 120 660 160 660 900 Destroy 0b10 Robot/NC 325 | 20 20 . 65 40 15 . . . . . 15 . . . . . . 25 . . . 10 50 . . . 25 40 Destroy Leader 1192 | . 58 10 138 130 80 . 20 . . 20 122 20 20 . . . . 126 10 10 . 10 116 20 . 20 138 124 Allied During Kill 15 | . . . . . . . . . . . . . . . . . . . . 1 . . . . . . 14 . Successful Hack 129 | . . . 3 3 17 . . . . . . . . . . . . 7 . . . . . . . . 33 66 Disable Machine 825 | . . . . 75 75 . . . . . 120 . . . . . . 105 . . . . 210 . . . 90 150 Destroy Structure 832 | . 3 . 39 22 20 . . . . . 100 . . . . . 16 66 . . . . 158 . . . 142 266 Advance Influence 450 | . . . . . . . . . . . . . . . . . . . . . . . 450 . . . . . Partial Spotted 15 | . . . . . . . . . . . . . . . . . . . . . . . . . . . 15 . Lose Combat Pursuer 465 | . 60 30 15 . . 15 30 . . . . . . . . . . 15 . . . 15 75 . 180 . 30 . Influence Decreases 9449 | 20 310 251 656 619 445 152 130 . . 160 413 544 58 62 20 80 16 555 419 111 . 95 632 668 615 812 469 1137 Entered New Map 2411 | . . 44 . 38 53 30 . . . . . 151 . 62 . 30 . . 93 . . . . 374 479 704 24 329 Time Decay 6023 | 20 310 207 496 421 382 122 130 . . 150 413 393 58 . 20 50 16 450 306 81 . 95 452 294 126 108 425 498 Search Patrol Dispatched 100 | . . . . . . . . . . . . . . . . . . . . . . . 100 . . . . . Lost Part 480 | . . . 10 10 10 . . . . 10 . . . . . . . 10 20 10 . . 80 . 10 . . 310 Lost Ally 40 | . . . . . . . . . . . . . . . . . . . . 20 . . . . . . 20 . Purge Threat 395 | . . . 150 150 . . . . . . . . . . . . . 95 . . . . . . . . . . Squads Dispatched 60 | . 1 . 6 1 8 . . . . . 10 . . . . . . 3 . . . . 6 . . . 8 17 Investigation 7 | . . . . . 1 . . . . . 2 . . . . . . . . . . . . . . . 4 . Extermination 17 | . . . . . 4 . . . . . 3 . . . . . . 3 . . . . 1 . . . 3 3 Reinforcement 17 | . 1 . 3 1 2 . . . . . 2 . . . . . . . . . . . 2 . . . 1 5 Assault 9 | . . . . . . . . . . . . . . . . . . . . . . . 2 . . . . 7 Garrison 10 | . . . 3 . 1 . . . . . 3 . . . . . . . . . . . 1 . . . . 2 Intercept . | . . . . . . . . . . . . . . . . . . . . . . . . . . . . . Searches Triggered 1 | . . . . . . . . . . . . . . . . . . . . . . . 1 . . . . . Data Miner Redirects 3 | . . . . . . . . . . . . . . . . . . . . . . . . . . . . 3 Construction Impeded 4 | . . . . . . . . . . . 1 . . . . . . . . . . . . . . . 1 2 Haulers Reinforced 2 | . . . . . . . . . . . 1 . . . . . . . . . . . 1 . . . . . Active Scanning Responses . | . . . . . . . . . . . . . . . . . . . . . . . . . . . . . Cargo Convoy Interrupts . | . . . . . . . . . . . . . . . . . . . . . . . . . . . . . Stealth | -11 -10 -10 -8 -8 -7 -7 -7 -7 -7 -6 -6 -6 -6 -6 -5 -5 -5 -5 -5 -5 -5 -4 -4 -4 -4 -3 -3 -3 --------- Run | Yrd Mat Sub Mat Sto Fac Low Low Zio Dee Pro Fac Low Low Dat Pro Fac Was Fac Upp Upp Zhi Pro Fac Upp War Pro Res Tes Distress Signals 18 | . 2 . 5 4 1 . . . . . 1 . . . . . . . . . . . . . . . 2 3 Communications Jammed 23 | . . . . . . . . . . . . . . . . . . 7 . . . . . . . . 2 14 Distress Signals 23 | . . . . . . . . . . . . . . . . . . 7 . . . . . . . . 2 14 Times Spotted 549 | . 22 23 44 26 17 3 7 . 48 7 27 6 5 . 10 1 7 37 9 5 . 8 49 5 67 8 39 69 Peak Tracking Total 37 | . 3 6 6 4 4 2 3 . 37 4 5 3 4 . 5 1 5 5 5 5 . 2 9 4 17 4 7 7 Tactical Retreats 24 | . 4 1 1 . . 1 1 . . . . . . . . . 2 1 . . . 1 5 . 5 . 2 . Traps | -11 -10 -10 -8 -8 -7 -7 -7 -7 -7 -6 -6 -6 -6 -6 -5 -5 -5 -5 -5 -5 -5 -4 -4 -4 -4 -3 -3 -3 ------- Run | Yrd Mat Sub Mat Sto Fac Low Low Zio Dee Pro Fac Low Low Dat Pro Fac Was Fac Upp Upp Zhi Pro Fac Upp War Pro Res Tes Traps Triggered 13 | . 1 1 . 1 . . . . . . 4 . . . . 1 . 1 . . . . 1 . . . 1 2 Indirectly . | . . . . . . . . . . . . . . . . . . . . . . . . . . . . . Trap Hack Attempts . | . . . . . . . . . . . . . . . . . . . . . . . . . . . . . Triggered . | . . . . . . . . . . . . . . . . . . . . . . . . . . . . . Disarmed . | . . . . . . . . . . . . . . . . . . . . . . . . . . . . . Reprogrammed . | . . . . . . . . . . . . . . . . . . . . . . . . . . . . . Reused . | . . . . . . . . . . . . . . . . . . . . . . . . . . . . . Traps Extracted . | . . . . . . . . . . . . . . . . . . . . . . . . . . . . . Installed . | . . . . . . . . . . . . . . . . . . . . . . . . . . . . . Triggered . | . . . . . . . . . . . . . . . . . . . . . . . . . . . . . Machines | -11 -10 -10 -8 -8 -7 -7 -7 -7 -7 -6 -6 -6 -6 -6 -5 -5 -5 -5 -5 -5 -5 -4 -4 -4 -4 -3 -3 -3 ---------- Run | Yrd Mat Sub Mat Sto Fac Low Low Zio Dee Pro Fac Low Low Dat Pro Fac Was Fac Upp Upp Zhi Pro Fac Upp War Pro Res Tes Machines Disabled 68 | . . 1 . 5 5 . . 3 3 . 8 . . . 1 . . 7 1 . . . 14 . 1 . 6 13 Max in Single Turn 13 | . . 1 . 1 1 . . 1 1 . 5 . . . 1 . . 3 1 . . . 13 . 1 . 1 2 Garrison Access 3 | . . . . 1 . . . . . . 1 . . . . . . . . . . . . . . . . 1 Machines Repaired . | . . . . . . . . . . . . . . . . . . . . . . . . . . . . . Machines Dismantled 6 | . . . . 2 1 . . 3 . . . . . . . . . . . . . . . . . . . . Machines Sabotaged . | . . . . . . . . . . . . . . . . . . . . . . . . . . . . . Overloaded Fab Kills . | . . . . . . . . . . . . . . . . . . . . . . . . . . . . . Hacking | -11 -10 -10 -8 -8 -7 -7 -7 -7 -7 -6 -6 -6 -6 -6 -5 -5 -5 -5 -5 -5 -5 -4 -4 -4 -4 -3 -3 -3 --------- Run | Yrd Mat Sub Mat Sto Fac Low Low Zio Dee Pro Fac Low Low Dat Pro Fac Was Fac Upp Upp Zhi Pro Fac Upp War Pro Res Tes Machines Accessed 72 | . 5 2 6 8 8 1 . . . . 7 2 . 4 . 1 . 8 . . 4 . 1 . 3 . 6 6 Terminals 42 | . 4 . 4 7 3 . . . . . 5 1 . . . 1 . 7 . . . . 1 . . . 6 3 Fabricators 1 | . . . . . 1 . . . . . . . . . . . . . . . . . . . . . . . Repair Stations 3 | . 1 . 1 . 1 . . . . . . . . . . . . . . . . . . . . . . . Recycling Units 1 | . . . . . 1 . . . . . . . . . . . . . . . . . . . . . . . Scanalyzers 5 | . . . 1 . 1 . . . . . 1 . . . . . . . . . . . . . . . . 2 Garrison Access 5 | . . . . 1 1 . . . . . 1 . . . . . . 1 . . . . . . . . . 1 Total Hacks 182 | . 13 6 11 14 12 1 . . . . 12 2 . 30 . 3 . 13 . . 17 . 2 . 13 . 18 15 Successful 113 | . 7 6 9 6 3 1 . . . . 4 2 . 30 . 1 . 5 . . 17 . 1 . 13 . 3 5 Failed 69 | . 6 . 2 8 9 . . . . . 8 . . . . 2 . 8 . . . . 1 . . . 15 10 Catastrophic 14 | . 1 . . 1 4 . . . . . 1 . . . . . . 3 . . . . . . . . 2 2 Database Lockouts . | . . . . . . . . . . . . . . . . . . . . . . . . . . . . . Manual 54 | . 6 . 5 9 5 . . 1 . . 6 . . . . 1 . 2 . . . . 2 . 1 . 12 4 Terminals 82 | . 9 . 5 12 3 . . . . . 9 1 . . . 3 . 12 . . . . 2 . . . 18 8 Fabricators 1 | . . . . . 1 . . . . . . . . . . . . . . . . . . . . . . . Repair Stations 9 | . 4 . 2 . 3 . . . . . . . . . . . . . . . . . . . . . . . Recycling Units 2 | . . . . . 2 . . . . . . . . . . . . . . . . . . . . . . . Scanalyzers 12 | . . . 4 . 1 . . . . . 2 . . . . . . . . . . . . . . . . 5 Garrison Access 8 | . . . . 2 2 . . . . . 1 . . . . . . 1 . . . . . . . . . 2 Terminal Hacks 88 | . 2 6 2 4 1 1 . . . . 1 2 . 30 . . . 5 . . 17 . 1 . 13 . 2 1 Record 30 | . . 5 . . . . . . . . . 1 . 11 . . . . . . 5 . . . 8 . . . Part Schematic 16 | . . . . . . . . . . . . . . 12 . . . . . . 4 . . . . . . . Robot Schematic 4 | . . . . . . . . . . . . . . 4 . . . . . . . . . . . . . . Robot Analysis 5 | . 1 . . . . . . . . . . . . . . . . . . . 4 . . . . . . . Prototype ID Bank 12 | . . . . . . . . . . . . . . 3 . . . . . . 4 . . . 5 . . . Open Door 4 | . . . . 2 . 1 . . . . . 1 . . . . . . . . . . . . . . . . Branch Access Points 6 | . . . 1 . 1 . . . . . 1 . . . . . . 1 . . . . 1 . . . 1 . Alert Level 1 | . . . . . . . . . . . . . . . . . . 1 . . . . . . . . . . Unreport Threat 3 | . . . 1 1 . . . . . . . . . . . . . 1 . . . . . . . . . . Locate Traps 4 | . 1 . . 1 . . . . . . . . . . . . . 1 . . . . . . . . 1 . Hauler Manifests 1 | . . . . . . . . . . . . . . . . . . 1 . . . . . . . . . . Proto ID Catalog 1 | . . 1 . . . . . . . . . . . . . . . . . . . . . . . . . . Protovariant Controls 1 | . . . . . . . . . . . . . . . . . . . . . . . . . . . . 1 Fabricator Hacks 1 | . . . . . 1 . . . . . . . . . . . . . . . . . . . . . . . Network Status 1 | . . . . . 1 . . . . . . . . . . . . . . . . . . . . . . . Repair Station Hacks 7 | . 4 . 2 . 1 . . . . . . . . . . . . . . . . . . . . . . . Scan Component 4 | . 2 . 1 . 1 . . . . . . . . . . . . . . . . . . . . . . . Repair 3 | . 2 . 1 . . . . . . . . . . . . . . . . . . . . . . . . . Recycling Unit Hacks . | . . . . . . . . . . . . . . . . . . . . . . . . . . . . . Scanalyzer 6 | . . . 4 . . . . . . . 1 . . . . . . . . . . . . . . . . 1 Retrieve Study 6 | . . . 4 . . . . . . . 1 . . . . . . . . . . . . . . . . 1 Garrison Access Hacks 3 | . . . . 1 . . . . . . 1 . . . . . . . . . . . . . . . . 1 Seal Access 3 | . . . . 1 . . . . . . 1 . . . . . . . . . . . . . . . . 1 Unauthorized Hacks 8 | . 1 . 1 1 . . . . . . 1 . . . . 1 . . . . . . . . . . 1 2 Terminals 7 | . 1 . 1 1 . . . . . . 1 . . . . 1 . . . . . . . . . . 1 1 Botnet 7 | . 1 . 1 1 . . . . . . 1 . . . . 1 . . . . . . . . . . 1 1 Fabricators . | . . . . . . . . . . . . . . . . . . . . . . . . . . . . . Repair Stations . | . . . . . . . . . . . . . . . . . . . . . . . . . . . . . Recycling Units . | . . . . . . . . . . . . . . . . . . . . . . . . . . . . . Scanalyzers 1 | . . . . . . . . . . . . . . . . . . . . . . . . . . . . 1 Researchers 1 | . . . . . . . . . . . . . . . . . . . . . . . . . . . . 1 Garrison Access . | . . . . . . . . . . . . . . . . . . . . . . . . . . . . . Data Cores Recovered 3 | . . . 1 . . . . . . . . . . . . . . . . . . . 1 . . . 1 . Used 1 | . . . . . . . . . . . . . . . . . . . . . . . . . . . 1 . Hacking Detections 44 | . 3 . 2 6 6 . . . . . 5 1 . . . 1 . 8 . . . . . . . . 6 6 Full Trace Events 6 | . . . . . 1 . . . . . 1 . . . . . . . . . . . . . . . 4 . Feedback Events 1 | . . . . . . . . . . . 1 . . . . . . . . . . . . . . . . . Corruption 1 | . . . . . . . . . . . 1 . . . . . . . . . . . . . . . . . Feedback Blocked . | . . . . . . . . . . . . . . . . . . . . . . . . . . . . . Robot Schematics Acquired 8 | . . . . . . . . 4 . . . . . 4 . . . . . . . . . . . . . . Robots Built . | . . . . . . . . . . . . . . . . . . . . . . . . . . . . . Authchips . | . . . . . . . . . . . . . . . . . . . . . . . . . . . . . Time . | . . . . . . . . . . . . . . . . . . . . . . . . . . . . . Total Robot Build Rating . | . . . . . . . . . . . . . . . . . . . . . . . . . . . . . Part Schematics Acquired 30 | . . . . . . . . 14 . . . . . 12 . . . . . . 4 . . . . . . . Parts Built . | . . . . . . . . . . . . . . . . . . . . . . . . . . . . . Authchips . | . . . . . . . . . . . . . . . . . . . . . . . . . . . . . Time . | . . . . . . . . . . . . . . . . . . . . . . . . . . . . . Total Part Build Rating . | . . . . . . . . . . . . . . . . . . . . . . . . . . . . . Part Studies Acquired 6 | . . . 4 . . . . . . . 1 . . . . . . . . . . . . . . . . 1 Parts Repaired 3 | . 2 . 1 . . . . . . . . . . . . . . . . . . . . . . . . . Time 84 | . 52 . 32 . . . . . . . . . . . . . . . . . . . . . . . . . Parts Recycled . | . . . . . . . . . . . . . . . . . . . . . . . . . . . . . Recycled Matter . | . . . . . . . . . . . . . . . . . . . . . . . . . . . . . Retrieved Matter . | . . . . . . . . . . . . . . . . . . . . . . . . . . . . . Retrieved Components . | . . . . . . . . . . . . . . . . . . . . . . . . . . . . . Parts Scanalyzed . | . . . . . . . . . . . . . . . . . . . . . . . . . . . . . Part Schematics Acquired . | . . . . . . . . . . . . . . . . . . . . . . . . . . . . . Parts Damaged . | . . . . . . . . . . . . . . . . . . . . . . . . . . . . . Bothacking | -11 -10 -10 -8 -8 -7 -7 -7 -7 -7 -6 -6 -6 -6 -6 -5 -5 -5 -5 -5 -5 -5 -4 -4 -4 -4 -3 -3 -3 ------------ Run | Yrd Mat Sub Mat Sto Fac Low Low Zio Dee Pro Fac Low Low Dat Pro Fac Was Fac Upp Upp Zhi Pro Fac Upp War Pro Res Tes Used RIF Installer . | . . . . . . . . . . . . . . . . . . . . . . . . . . . . . Robots Hacked 1 | . . . . . . . . . . . . . . . . . . . . . . . . . . . 1 . Non-combat . | . . . . . . . . . . . . . . . . . . . . . . . . . . . . . Combat . | . . . . . . . . . . . . . . . . . . . . . . . . . . . . . Robot Hacks Applied . | . . . . . . . . . . . . . . . . . . . . . . . . . . . . . Manual 1 | . . . . . . . . . . . . . . . . . . . . . . . . . . . 1 . Relay Couplers Released . | . . . . . . . . . . . . . . . . . . . . . . . . . . . . . Fabnet Peak Effective % . | . . . . . . . . . . . . . . . . . . . . . . . . . . . . . Robots Rewired 1 | . . . . . . . . . . . . . . . . . . . 1 . . . . . . . . . Allies Hacked . | . . . . . . . . . . . . . . . . . . . . . . . . . . . . . Hacks Repelled . | . . . . . . . . . . . . . . . . . . . . . . . . . . . . . Allies | -11 -10 -10 -8 -8 -7 -7 -7 -7 -7 -6 -6 -6 -6 -6 -5 -5 -5 -5 -5 -5 -5 -4 -4 -4 -4 -3 -3 -3 -------- Run | Yrd Mat Sub Mat Sto Fac Low Low Zio Dee Pro Fac Low Low Dat Pro Fac Was Fac Upp Upp Zhi Pro Fac Upp War Pro Res Tes Total Allies 4 | . . . . . . . . 2 . . . . . . . . . . 1 . . . . . . . 1 . Largest Group 2 | . . . . . . . . 2 2 . . . . . . . . . 1 1 . . . . . . 1 . Highest-Rated Group 192 | . . . . . . . . 192 192 . . . . . . . . . 29 29 . . . . . . 116 . Highest-Rated Ally 116 | . . . . . . . . 96 96 . . . . . . . . . 29 29 . . . . . . 116 . Total Orders . | . . . . . . . . . . . . . . . . . . . . . . . . . . . . . Ally Attacks 43 | . . . . . . . . . 25 . . . . . . . . . . 1 . . . . . . 17 . Total Damage 1750 | . . . . . . . . . 1021 . . . . . . . . . . 20 . . . . . . 709 . Kills 12 | . . . . . . . . . 8 . . . . . . . . . . 1 . . . . . . 3 . Allies Corrupted . | . . . . . . . . . . . . . . . . . . . . . . . . . . . . . Allies Melted . | . . . . . . . . . . . . . . . . . . . . . . . . . . . . . Intel | -11 -10 -10 -8 -8 -7 -7 -7 -7 -7 -6 -6 -6 -6 -6 -5 -5 -5 -5 -5 -5 -5 -4 -4 -4 -4 -3 -3 -3 ------- Run | Yrd Mat Sub Mat Sto Fac Low Low Zio Dee Pro Fac Low Low Dat Pro Fac Was Fac Upp Upp Zhi Pro Fac Upp War Pro Res Tes Active Infowar (turns) 27429 | 80 987 2832 1209 1586 2139 723 823 1602 125 . 1504 1339 837 144 830 215 329 1323 861 561 323 887 1133 654 1128 881 1177 1197 Optics 15323 | . . . . . . . . . . . 1504 1339 837 144 830 215 329 1323 861 561 323 887 1133 654 1128 881 1177 1197 Sensors 8729 | . . . . . 1853 723 823 1602 125 . 706 1285 751 144 717 . . . . . . . . . . . . . Terrain 1971 | . . . . . . . . . . . . . . . . . . . . . . . . . 534 . 776 661 Seismic 9946 | 80 987 2832 1209 1586 910 . . . . . . . . . . . . 24 777 . . . 838 . . 386 220 97 T.N.C. 1 | . . . . . . . . . . . . . . . . . . . . . . . . . . . 1 . Jamming 3247 | . . . . . . . . . . . . . . . . . . 763 625 561 118 . . . . . 850 330 Robot Analysis Total 5 | . 1 . . . . . . . . . . . . . . . . . . . 4 . . . . . . . Derelict Logs Recovered 14 | . . . . . . 2 . 2 . 1 . 1 1 . 2 . . . 1 1 . 1 . 2 . . . . Drone Launches . | . . . . . . . . . . . . . . . . . . . . . . . . . . . . . Drone Recoveries . | . . . . . . . . . . . . . . . . . . . . . . . . . . . . . Exploration | -11 -10 -10 -8 -8 -7 -7 -7 -7 -7 -6 -6 -6 -6 -6 -5 -5 -5 -5 -5 -5 -5 -4 -4 -4 -4 -3 -3 -3 ------------- Run | Yrd Mat Sub Mat Sto Fac Low Low Zio Dee Pro Fac Low Low Dat Pro Fac Was Fac Upp Upp Zhi Pro Fac Upp War Pro Res Tes Turns Passed 33426 | 134 1434 3364 2006 1586 2139 781 1021 1602 2751 754 1910 1339 837 144 830 215 329 1323 861 561 323 887 1133 654 1128 881 1177 1322 Spaces Moved 15726 | 61 637 1283 733 572 1202 514 536 946 1318 521 818 596 392 77 373 104 128 749 465 291 139 404 463 291 489 387 655 582 Core 47 | 3 . . . . . . . . 10 . . . . . . . . . . . . . . . . . . 34 Treads 3667 | 58 637 1204 665 572 529 . . . 2 . . . . . . . . . . . . . . . . . . . Legs 8810 | . . . . . . . . . 920 521 818 596 392 77 373 104 128 749 465 291 139 404 463 291 489 387 655 548 Wheels 3202 | . . 79 68 . 673 514 536 946 386 . . . . . . . . . . . . . . . . . . . Hover . | . . . . . . . . . . . . . . . . . . . . . . . . . . . . . Flight . | . . . . . . . . . . . . . . . . . . . . . . . . . . . . . Fastest Speed 50 | 50 160 130 130 152 115 130 160 160 136 136 136 180 136 189 189 189 136 136 140 183 183 140 140 183 140 176 120 50 Average Speed 171 | 154 160 240 223 193 149 146 160 160 152 136 189 189 188 189 189 202 152 140 152 183 183 147 182 183 169 181 125 153 Slowest Speed 1750 | 160 160 320 240 200 203 160 175 160 1750 136 195 195 189 189 189 260 260 195 185 185 183 183 183 183 185 230 173 1250 Overloaded Moves . | . . . . . . . . . . . . . . . . . . . . . . . . . . . . . Propulsion Burnouts . | . . . . . . . . . . . . . . . . . . . . . . . . . . . . . Robots Hopped . | . . . . . . . . . . . . . . . . . . . . . . . . . . . . . Potential Cave-ins 7 | . . . . . . . . . . . . . . . . . . . . . . 4 . . . . 3 . Cave-ins Triggered . | . . . . . . . . . . . . . . . . . . . . . . . . . . . . . Exploration Rate (%) 59 | 6 96 88 55 84 37 61 70 85 82 74 29 81 65 74 59 5 76 31 66 55 61 54 18 54 75 60 31 86 Regions Visited 28 Branch Regions 19 Pre-discovered Areas 9 | . . . . . . 1 . 2 . . . . 1 1 . . . . . . 3 . . 1 . . . . Known Exits Taken 15 | . . . 1 . 1 1 1 1 . 1 1 1 1 1 1 . . 1 . . . 1 1 . . . 1 . Unknown Exits Taken 11 | 1 1 1 . 1 . . . . 1 . . . . . . . . . 1 1 1 . . 1 1 1 . . Scrap Searched 34 | . . 8 . . . 1 6 1 . 5 . 2 1 . 4 . . . 3 1 . . . 1 . 1 . . Spaces Dug 167 | . . . 1 12 12 . . . . 7 30 4 . . 8 . 5 12 6 . . 20 9 . . . 34 7 Terrain Destroyed 875 | . . 39 36 15 17 3 21 . 73 40 109 12 30 . 15 . 10 31 29 7 . 39 80 8 20 9 73 159 Melee 13 | . . . 1 1 11 . . . . . . . . . . . . . . . . . . . . . . . Projectile 425 | . . 9 9 . 3 3 . . 2 15 57 12 2 . 15 . 10 31 29 7 . 39 36 8 20 9 73 36 AOE 437 | . . 30 26 14 3 . 21 . 71 25 52 . 28 . . . . . . . . . 44 . . . . 123 Terrain Rammed 1 | . . . . 1 . . . . . . . . . . . . . . . . . . . . . . . . Walls Destroyed . | . . . . . . . . . . . . . . . . . . . . . . . . . . . . . Machines Disabled . | . . . . . . . . . . . . . . . . . . . . . . . . . . . . . Actions | -11 -10 -10 -8 -8 -7 -7 -7 -7 -7 -6 -6 -6 -6 -6 -5 -5 -5 -5 -5 -5 -5 -4 -4 -4 -4 -3 -3 -3 --------- Run | Yrd Mat Sub Mat Sto Fac Low Low Zio Dee Pro Fac Low Low Dat Pro Fac Was Fac Upp Upp Zhi Pro Fac Upp War Pro Res Tes Total 20222 | 85 962 1474 983 905 1421 529 686 976 1972 544 1046 772 485 76 463 113 213 912 557 303 210 643 620 404 661 534 846 827 Wait 2495 | 9 220 82 75 157 53 3 132 . 491 . 86 141 81 . 59 . 51 63 37 1 62 207 47 87 82 103 65 101 Move 15699 | 60 636 1282 732 571 1201 513 535 945 1317 520 817 595 391 76 372 104 127 748 464 290 138 403 462 290 488 386 654 582 Hop . | . . . . . . . . . . . . . . . . . . . . . . . . . . . . . Pick Up 158 | 2 24 6 17 5 18 3 2 . 27 . 5 2 . . 1 . 2 . 3 1 2 . 5 6 4 11 10 2 Fast Attach 99 | 7 4 3 5 5 5 . 1 . 15 2 7 1 2 . 3 1 1 10 3 . 2 2 3 2 3 . 1 11 Attach 41 | . . . 5 . 6 . 2 . 11 1 3 2 1 . 1 . 1 . . . . . 3 . 1 . 1 3 Detach 148 | . 1 1 . . 2 . 2 . 16 5 15 7 6 . 5 5 1 14 4 1 2 3 12 8 12 9 5 12 Swap 243 | 1 9 37 33 34 30 4 7 2 18 . 2 1 . . 2 1 . 1 . 1 1 . 8 1 8 4 24 14 Drop 199 | . 18 14 29 21 28 . . . 25 2 10 . 1 . 2 2 2 5 2 1 3 1 8 4 4 4 8 5 Fire 1002 | 6 50 49 63 95 55 5 5 . 46 14 85 23 3 . 18 . 28 71 32 8 . 27 72 6 59 17 78 87 Melee 47 | . . . 20 3 16 1 . 1 6 . . . . . . . . . . . . . . . . . . . Ram 1 | . . . . 1 . . . . . . . . . . . . . . . . . . . . . . . . Kick 1 | . . . . . . . . . . . 1 . . . . . . . . . . . . . . . . . Crush . | . . . . . . . . . . . . . . . . . . . . . . . . . . . . . Escape Stasis 25 | . . . . . . . . . . . 15 . . . . . . . . . . . . . . . . 10 Rewire 12 | . . . . . . . . . . . . . . . . . . . 12 . . . . . . . . . Trap . | . . . . . . . . . . . . . . . . . . . . . . . . . . . . . Miscellaneous 52 | . . . 4 13 7 . . 28 . . . . . . . . . . . . . . . . . . . . Route ------- -11/Scrapyard -10/Materials (discovered 5 exits: [*Mat x3] / [*Min] / *Sub) -10/Subcaves -8/Materials (discovered 4 exits: *Fac x2 / *Sto x2) -8/Storage -7/Factory (discovered 3 exits: *Fac / *Low x2) -7/Lower Caves (discovered 2 exits: *Low / *Zio) -7/Lower Caves -7/Zion (discovered 2 exits: *Dee / *Pro) -7/Deep Caves -6/Proximity Caves -6/Factory (discovered 4 exits: *Fac x2 / *Low x2) -6/Lower Caves -6/Lower Caves -6/Data Miner -5/Proximity Caves -5/Factory (discovered 2 exits: Fac / Upp) -5/Waste -5/Factory (discovered 3 exits: *Fac / *Upp x2) -5/Upper Caves -5/Upper Caves -5/Zhirov -4/Proximity Caves -4/Factory (discovered 4 exits: *Upp x2 / Ext x2) -4/Upper Caves -4/Warlord -3/Proximity Caves -3/Research (discovered 3 exits: Arm / *Tes x2) -3/Testing History --------- Turn | Location | Event 6 | -11/Scrapyard | Discovered new exit (range 15) 135 | -11/Scrapyard | Entered Materials 303 | -10/Materials | Build established: Mutant 328 | -10/Materials | Discovered new exit (range 15) 696 | -10/Materials | Discovered new exit (range 3) 880 | -10/Materials | Repaired Lgt. Treads 907 | -10/Materials | Repaired Seismic Detector 1172 | -10/Materials | Discovered new exit (range 4) 1436 | -10/Materials | Discovered new exit (range 14) 1546 | -10/Materials | Discovered new exit (range 9) 1569 | -10/Materials | Entered Subcaves 1594 | -10/Subcaves | Core integrity fell below 50% 1612 | -10/Subcaves | Visited 4L-MR0's lab 1631 | -10/Subcaves | Found Power Bank 1746 | -10/Subcaves | Disturbed a concealed Subdweller 2048 | -10/Subcaves | Visited Clippyterm 2055 | -10/Subcaves | Learned Factory trap positions 2055 | -10/Subcaves | Learned Factory stockpile data 2261 | -10/Subcaves | Build established: Scavenger-Mutant 2441 | -10/Subcaves | A swath of the cavern ceiling suddenly collapsed 2608 | -10/Subcaves | Shifting Twisted Machinery released Mak. Sword 2614 | -10/Subcaves | Shifting Twisted Machinery released Sub. Power Source 3582 | -10/Subcaves | Core integrity fell below 20% 3831 | -10/Subcaves | A swath of the cavern ceiling suddenly collapsed 3896 | -10/Subcaves | Disturbed a concealed Subdweller 4024 | -10/Subcaves | Build established: Mutant 4767 | -10/Subcaves | Shifting Twisted Machinery released Sub. Power Source 4795 | -10/Subcaves | Shifting Twisted Machinery released Sub. Power Source 4856 | -10/Subcaves | Discovered new exit (range 13) 4933 | -10/Subcaves | Entered Materials 4933 | -8/Materials | Evolved 4 slots: Utility x4 5254 | -8/Materials | Discovered new exit (range 10) 5314 | -8/Materials | Repaired Hrd. Light Armor Plating 5605 | -8/Materials | Build established: Scavenger-Mutant 5834 | -8/Materials | Identified exit to Storage 5868 | -8/Materials | Discovered new exit (range 4) 6702 | -8/Materials | Garrison activated, responded to threat 6939 | -8/Materials | Entered Storage 7346 | -8/Storage | Build established: Mutant 8509 | -8/Storage | Discovered new exit (range 8) 8525 | -8/Storage | Entered Factory 8525 | -7/Factory | Evolved 2 slots: Propulsion x1, Utility x1 8526 | -7/Factory | Loaded intel: 96 trap records 8926 | -7/Factory | Garrison activated, responded to threat 9473 | -7/Factory | Identified exit to Lower Caves 10260 | -7/Factory | Discovered new exit (range 7) 10266 | -7/Factory | Identified exit to Factory 10408 | -7/Factory | Attached Power Bank, gained temporary slots: Power x3 10556 | -7/Factory | Found Prototype Launcher 10557 | -7/Factory | Identified Rocket Array 10562 | -7/Factory | Found Rocket Array 10664 | -7/Factory | Entered Lower Caves 10900 | -7/Lower Caves | Attracted the attention of an 0b10 checkpoint 10961 | -7/Lower Caves | A Derelict revealed a hidden shortcut to a safe place 11324 | -7/Lower Caves | Discovered new exit (range 10) 11336 | -7/Lower Caves | Identified exit to Lower Caves 11381 | -7/Lower Caves | Learned 4 Factory zone layouts 11445 | -7/Lower Caves | Entered another Lower Caves area 12436 | -7/Lower Caves | Discovered new exit (range 5) 12444 | -7/Lower Caves | Identified exit to Zion 12466 | -7/Lower Caves | Entered Zion 12537 | -7/Zion | System corruption cleaned by Quarantine Array 12625 | -7/Zion | Discovered new exit (range 13) 12644 | -7/Zion | Identified exit to Proximity Caves 12892 | -7/Zion | Learned location of 1 exit from Factory 12935 | -7/Zion | Learned 8 Factory zone layouts 13125 | -7/Zion | Met Imprinter 13277 | -7/Zion | Given A8's code to call for help 13538 | -7/Zion | Learned location of Data Miner (-6) 13748 | -7/Zion | Received a visual enhancement algorithm 14016 | -7/Zion | Discovered new exit (range 5) 14019 | -7/Zion | Saw the warning signs outside the Deep Caves entrance 14022 | -7/Zion | Identified exit to Deep Caves 14052 | -7/Zion | Enhanced Grunt warped into view, answering call for help 14052 | -7/Zion | Enhanced Grunt warped into view, answering call for help 14068 | -7/Zion | Entered Deep Caves 14068 | -7/Deep Caves | Accompanied by 2 allies 14176 | -7/Deep Caves | Attacked by Z-Imprinter 14185 | -7/Deep Caves | Destroyed Z-Imprinter 14290 | -7/Deep Caves | Z-Facility disabled 14387 | -7/Deep Caves | Found Prototype Protection 14387 | -7/Deep Caves | Identified Zio. Weapon Casing 14390 | -7/Deep Caves | Found Zio. Weapon Casing 14393 | -7/Deep Caves | Found Zio. Weapon Casing 14492 | -7/Deep Caves | Found Zio. Weapon Casing 14503 | -7/Deep Caves | Found Zio. Weapon Casing 14506 | -7/Deep Caves | Found Zio. Weapon Casing 14842 | -7/Deep Caves | Spotted AG-57306 14897 | -7/Deep Caves | Core integrity fell below 50% 14901 | -7/Deep Caves | Destroyed AG-57306 14927 | -7/Deep Caves | Lost 9 parts (2p2n4u1w) 14959 | -7/Deep Caves | Found GOLEM Unit 15512 | -7/Deep Caves | Spotted AG-02960 15524 | -7/Deep Caves | Destroyed AG-02960 15772 | -7/Deep Caves | Triggered Deep Caves wall 15772 | -7/Deep Caves | Spotted AS-65446 15772 | -7/Deep Caves | Spotted AS-03713 15781 | -7/Deep Caves | Destroyed AS-03713 15781 | -7/Deep Caves | Destroyed AS-65446 15823 | -7/Deep Caves | Destroyed 37 combat bots 15896 | -7/Deep Caves | Exposed GOLEM chamber 15900 | -7/Deep Caves | Found GOLEM Unit 15906 | -7/Deep Caves | Found GOLEM Unit 15913 | -7/Deep Caves | Found GOLEM Unit 15920 | -7/Deep Caves | Found GOLEM Unit 15925 | -7/Deep Caves | Found GOLEM Unit 15982 | -7/Deep Caves | Found GOLEM Unit 16077 | -7/Deep Caves | Build established: Golem 16810 | -7/Deep Caves | Discovered new exit (range 7) 16819 | -7/Deep Caves | Entered Proximity Caves 17573 | -6/Proximity Caves | Entered Factory 17573 | -6/Factory | Evolved 2 slots: Power x1, Utility x1 17574 | -6/Factory | Identified exit to Factory 18135 | -6/Factory | Discovered exit to Factory (range 21) 18790 | -6/Factory | Identified exit to Lower Caves 19098 | -6/Factory | Garrison activated, responded to threat 19241 | -6/Factory | Spotted B-75 Beast 19297 | -6/Factory | Destroyed B-75 Beast 19483 | -6/Factory | Entered Lower Caves 19665 | -6/Lower Caves | Learned Factory garrison access intel 20667 | -6/Lower Caves | Discovered new exit (range 20) 20707 | -6/Lower Caves | Identified exit to Lower Caves 20822 | -6/Lower Caves | Entered another Lower Caves area 21598 | -6/Lower Caves | Discovered new exit (range 14) 21657 | -6/Lower Caves | Identified exit to Data Miner 21659 | -6/Lower Caves | Entered Data Miner 21659 | -6/Data Miner | Discovered new exit (range 6) 21684 | -6/Data Miner | Met Data Miner 21728 | -6/Data Miner | Learned location of Section 7 (-2) 21728 | -6/Data Miner | Acquired the access code to Warlord's prototype stash 21760 | -6/Data Miner | Received God Mode back door access code from Data Miner 21801 | -6/Data Miner | Identified exit to Proximity Caves 21803 | -6/Data Miner | Entered Proximity Caves 22049 | -5/Proximity Caves | Received a Behemoth hack from an annoying Tinkerer 22122 | -5/Proximity Caves | Learned location of 1 exit from Factory 22153 | -5/Proximity Caves | Found Alien Artifact 22153 | -5/Proximity Caves | Identified Core Expander 22153 | -5/Proximity Caves | Installed Core Expander, added new Power slot 22511 | -5/Proximity Caves | Discovered exit to Factory (range 16) 22569 | -5/Proximity Caves | Attracted the attention of an 0b10 checkpoint 22633 | -5/Proximity Caves | Entered Factory 22633 | -5/Factory | Evolved 2 slots: Utility x2 22634 | -5/Factory | Identified exit to Upper Caves 22635 | -5/Factory | Identified exit to Factory 22636 | -5/Factory | Loaded intel: 4 garrison access locations 22848 | -5/Factory | Sucked down chute 22848 | -5/Factory | Entered Waste 22854 | -5/Waste | Found Prototype Device 22854 | -5/Waste | Identified Adv. Particle Accelerator 22866 | -5/Waste | Spotted C-40 Crusher 22959 | -5/Waste | Spotted C-40 Crusher 22965 | -5/Waste | Spotted C-40 Crusher 22984 | -5/Waste | Destroyed C-40 Crusher 22995 | -5/Waste | Spotted C-40 Crusher 23031 | -5/Waste | Crushed by Compactor (0 parts destroyed, 1 dropped) 23062 | -5/Waste | Spotted C-40 Crusher 23102 | -5/Waste | Spotted C-40 Crusher 23149 | -5/Waste | Discovered new exit (range 21) 23177 | -5/Waste | Entered Factory 24094 | -5/Factory | Discovered exit to Factory (range 6) 24500 | -5/Factory | Entered Upper Caves 24766 | -5/Upper Caves | Attracted the attention of an 0b10 checkpoint 24919 | -5/Upper Caves | Attracted the attention of an 0b10 outpost 25085 | -5/Upper Caves | Learned location of 1 exit from Proximity Caves 25258 | -5/Upper Caves | Discovered new exit (range 8) 25361 | -5/Upper Caves | Entered another Upper Caves area 25361 | -5/Upper Caves | Accompanied by 1 ally 25530 | -5/Upper Caves | Found DCF Scrap (16 items) 25659 | -5/Upper Caves | Learned 4 Factory zone layouts 25907 | -5/Upper Caves | Discovered new exit (range 8) 25922 | -5/Upper Caves | Entered Zhirov 25922 | -5/Zhirov | Discovered new exit (range 3) 25955 | -5/Zhirov | Met Zhirov 25988 | -5/Zhirov | Learned location of Quarantine (-2) 25988 | -5/Zhirov | Learned location of Testing (-3) 25988 | -5/Zhirov | Learned location of Command (-1) 26010 | -5/Zhirov | Zhirov requested help retrieving the SGEMP Prototype 26040 | -5/Zhirov | Found Alien Artifact 26040 | -5/Zhirov | Identified Integrated Reactor 26040 | -5/Zhirov | Installed Integrated Reactor, increased core energy generation (+10) 26062 | -5/Zhirov | Found Alien Artifact 26245 | -5/Zhirov | Entered Proximity Caves 26253 | -4/Proximity Caves | Learned Research terminal intel 26333 | -4/Proximity Caves | Spotter reported a threat 26380 | -4/Proximity Caves | Spotted B-86 Titan 26407 | -4/Proximity Caves | Spotter reported a threat 26571 | -4/Proximity Caves | Spotter reported a threat 26651 | -4/Proximity Caves | Attracted the attention of an 0b10 checkpoint 27132 | -4/Proximity Caves | Entered Factory 27132 | -4/Factory | Evolved 2 slots: Utility x1, Weapon x1 27303 | -4/Factory | Found Unknown Device 27303 | -4/Factory | Identified Quantum Capacitor 27382 | -4/Factory | Search patrols dispatched 27591 | -4/Factory | Spotted B-86 Titan 27597 | -4/Factory | Destroyed B-86 Titan 27632 | -4/Factory | First assault squad dispatched 27777 | -4/Factory | Lost 4 parts (1p2u1w) 28092 | -4/Factory | Identified exit to Upper Caves 28092 | -4/Factory | Identified exit to Extension 28244 | -4/Factory | Garrison activated, responded to threat 28256 | -4/Factory | Spotted B-86 Titan 28265 | -4/Factory | Entered Upper Caves 28795 | -4/Upper Caves | A Derelict revealed a hidden shortcut to "reach the base" 28851 | -4/Upper Caves | Learned 8 Research zone layouts 28919 | -4/Upper Caves | Entered Warlord 29432 | -4/Warlord | Met Warlord 29457 | -4/Warlord | Warlord's base attacked by MAIN.C 29533 | -4/Warlord | Opened Warlord's prototype stash 29537 | -4/Warlord | Found Prototype Reactor 29537 | -4/Warlord | Identified Vortex Chain Reactor 29559 | -4/Warlord | Found Prototype Processor 29559 | -4/Warlord | Identified Exp. Armor Integrity Analyzer 29733 | -4/Warlord | Destroyed 7 combat bots 29807 | -4/Warlord | Warlord forces counterattacked 29896 | -4/Warlord | Spotted Striker 29908 | -4/Warlord | Spotted Striker 29918 | -4/Warlord | Destroyed Striker 29940 | -4/Warlord | Spotted Executioner 29957 | -4/Warlord | Spotted Striker 29957 | -4/Warlord | Spotted Executioner 29971 | -4/Warlord | Spotted Striker 29973 | -4/Warlord | Destroyed Striker 29984 | -4/Warlord | Destroyed Striker 30035 | -4/Warlord | Lost 24 allies 30035 | -4/Warlord | Discovered new exit (range 8) 30040 | -4/Warlord | Destroyed 8 combat bots 30047 | -4/Warlord | Entered Proximity Caves 30851 | -3/Proximity Caves | Discovered new exit (range 21) 30928 | -3/Proximity Caves | Entered Research 30928 | -3/Research | Evolved 2 slots: Propulsion x1, Utility x1 30929 | -3/Research | Identified exit to Armory 30930 | -3/Research | Loaded intel: 23 terminal locations 31168 | -3/Research | Spotted B-86 Titan 31171 | -3/Research | Befriended a Behemoth using the annoying Tinkerer's hack 31520 | -3/Research | Spotted B-86 Titan 31621 | -3/Research | Found Gamma Bomb Array 31874 | -3/Research | Destroyed 7 combat bots 31986 | -3/Research | Discovered new exit (range 13) 32046 | -3/Research | Identified exit to Testing 32105 | -3/Research | Entered Testing 32355 | -3/Testing | First assault squad dispatched 32515 | -3/Testing | Garrison activated, responded to threat 32761 | -3/Testing | Found Prototype Device 32761 | -3/Testing | Identified Exp. Thermal Shield 32823 | -3/Testing | Found Prototype Processor 32823 | -3/Testing | Identified Spectral Analyzer 32826 | -3/Testing | Found Spectral Analyzer 32916 | -3/Testing | Found Prototype Device 32916 | -3/Testing | Identified Adv. EM Shield 32990 | -3/Testing | Spotted Striker 32997 | -3/Testing | Spotted Striker 33008 | -3/Testing | Incoming assault squad redirected 33010 | -3/Testing | System corruption reached 10% 33031 | -3/Testing | Found Prototype Energy Cannon 33031 | -3/Testing | Identified Potential Cannon 33091 | -3/Testing | Destroyed 9 combat bots 33097 | -3/Testing | Lost 11 parts (2p2n7u) 33295 | -3/Testing | Scanned by Researcher 33341 | -3/Testing | Lost 3 parts (1n2w) 33357 | -3/Testing | Core integrity fell below 50% 33364 | -3/Testing | System corruption reached 30% 33377 | -3/Testing | Incoming assault squad redirected 33379 | -3/Testing | Incoming assault squad redirected 33391 | -3/Testing | Core integrity fell below 20% 33427 | -3/Testing | Destroyed by P-80 Master with Gamma Rifle Last Messages --------------- 33389_ U-05 Engineer builds a Wall. 33389_ C-55 Analyst destroyed. 33390_ Asb. Nanovents destroyed. 33399_ System corrupted: Matter fused (-8). 33403_ Asb. Alloy Leg destroyed. 33408_ Penetrated by Slug. 33418_ System corrupted: Matter fused (-9). 33418_ Asb. Combat Suite destroyed. 33418_ Door malfunctions. 33425_ Enh. Multireflex Exoskeleton destroyed. 33425_ Repair Station disabled. 33425_ Backup Propulsion III tumbles out of repair station. 33425_ Backup Plating III tumbles out of repair station. 33425_ Repair Station disabled. 33427_ Backup Power III tumbles out of repair station. 33427_ Backup Propulsion III tumbles out of repair station. Map ----- +----------------------------------------------------+ | | | | | | | | | | | | | | | | | | | | | | | ?????????????????????????????????????????????????? | | ????????????#????????????????????????????????????? | | ???#????????????????#?#??????????????????????????? | | ?##??##############??????????????????????????????? | | ?????# #??????????????????????????????? | | ?????# """ #??????????????????????????????? | | #??#?# "T #??????????????????????????????? | | #????# """ " #??????????#???????????????????? | | #????# """" #??##########??????????????????? | | #????# """" #??# """ #????????????##????? | | #????# """" #??#!""=" #??????????????????? | | #????# """" #?## "=" #??????????????????? | | #????# #??# == * #??????????????????? | | #?? ?# #??# #??????????????????? | | #????# #??# @ #??#??????#????????? | | #??#?# #??# """ #?????#????????????? | | ############+####+#### """ #??????????????????? | | # """ #?????????#????##### | | % #p ################ | | % "" /p """ # # # | | "" # """ #""" # # " | | ########## "" ### """ #""" # # " | | #????# = #?# #""" + # " | | #????# #?# ! """ #"S """ # # "" | | "#?#?# #### #?# """ #"" """ # + "" | | "" ##??## #??# #?# ! """ #"" """ # # " | | "" #????# #??# ### # # # " | | "" ##?### ####+######+############### # " | | "" #??#"" # ! ## #???????????#?# # | | "" #??#T # ## #?????????????# # | | "" #??### # ## #???????#?????# ##### | | "" #????# + ## #????#######??# # | | #????# # ## #????# ?# # "" | | ?#????# # + #???## ?# # "" | | ##???????# # ####????# # # "" | | ?????????# # #???????# # # S | | ??????#### # [ #?#??#### + + "" | | ?????## " ####"#####???????# # # "" | | ?????# "$$! #??###???????????# # # "" | +----------------------------------------------------+ Best States ------------- Heat Dissipation 91 Energy Generation 93 Energy Capacity 1925 Matter Stores 300 Matter Capacity 300 Sight Range 24 Robot Scan Range 16 Terrain Scan Range 16 Terrain Scan Density 10 Jamming Range 14 Power Amplification 30 Additional Mass Support 20 Armor Coverage 1000 Resistance: KI 15 Resistance: TH 15 Resistance: EX 15 Resistance: EM 15 Resistance: I 15 Resistance: S 15 Resistance: P 15 Weapon Shielding 100 Phase Shifting 8 Evasion (%) 65 Targeting Accuracy 16 Core Analysis 8 Armor Integrity Analysis 50 Recoil Reduction 3 Matter Filtering 50 Particle Charging 20 Offensive Hacking 14 Item Schematics ----------------- Kinecellerator | -7/Zion | Archive Adv. Sensor Array | -7/Zion | Archive Xenon Bombardment Thruster | -7/Zion | Archive Imp. System Shield | -7/Zion | Archive Imp. Medium Armor Plating | -7/Zion | Archive System Guard | -7/Zion | Archive Imp. Trap Extractor | -7/Zion | Archive Remote Force Field | -7/Zion | Archive Wave Gun | -7/Zion | Archive Hvy. Laser | -7/Zion | Archive Phase Cannon | -7/Zion | Archive Drone Bay | -7/Zion | Archive Hvy. Ion Cannon | -7/Zion | Archive Lightning Gun | -7/Zion | Archive Combat Drone Bay | -6/Data Miner | Free Lgt. Regenerative Plating | -6/Data Miner | Free Cld. Gravmag System | -6/Data Miner | Free Prc. Energy Filter | -6/Data Miner | Free Tesla Bomb Launcher | -6/Data Miner | Free Centrium Wheel | -6/Data Miner | Free Adv. Coolant Injector | -6/Data Miner | Free Hvy. Gauss Cannon | -6/Data Miner | Free Force Lance | -6/Data Miner | Free Imp. Force Field | -6/Data Miner | Free Nova Cannon | -6/Data Miner | Free Mic. Antimatter Reactor | -6/Data Miner | Free Assault Drone Bay | -5/Zhirov | Free Exp. Heat Sink | -5/Zhirov | Free Exp. Optical Array | -5/Zhirov | Free Imp. Arc Thrower | -5/Zhirov | Free Robot Schematics ------------------ B-48 Gladiator | -7/Zion | Archive Y-54 Guardian | -7/Zion | Archive M-28 Smith | -7/Zion | Archive G-73 Enforcer | -7/Zion | Archive G-50 Soldier | -6/Data Miner | Free R-10 Processor | -6/Data Miner | Free L-41 Fighter | -6/Data Miner | Free A-15 Conveyor | -6/Data Miner | Free Fabricated ------------ Nothing Repaired ---------- Lgt. Treads | 62% | -10/Materials Seismic Detector | 35% | -10/Materials Hrd. Light Armor Plating | 7% | -8/Materials Studied --------- Lgt. Treads | -8/Materials | Hacked Rocket Launcher | -8/Materials | Hacked Arm. Treads | -8/Materials | Hacked Adv. Treads | -8/Materials | Hacked Proton Missile Launcher | -6/Factory | Hacked Gamma Bomb Array | -3/Testing | Hacked Alien Tech Used ----------------- Core Expander Integrated Reactor Achievements -------------- None Challenges ------------ None Game ------ Seed TeleporterMissileCleaver Manual? 0 Play Time 04:11:08 Cumulative 296.1 hours Start 2025.12.14 @ 23:43:01 End 2025.12.15 @ 03:53:56 Sessions 1 Manual Loads 0 Difficulty Rogue Special Mode None Game No. 212 Rogue 212 Adventurer 0 Explorer 0 Win Type - Total 13 Types 7/1/2/1/0/0/0/1/0/1 Lore% 72 Gallery% 77 Achievement% 70 Wizard Run 0 Options --------- Layout 2 ASCII 0 Keyboard 1 Movement Arrows Keybinds 0 Fullscreen 1 Font 32/Tamsyn Map View 50x44 Zoom Use 0% Tactical HUD 1 Map Filters NONE Filters NONE Steam 1 RUN: 36179dcd-bf5b-4263-a416-662773e9ce58